bitfinex/quotes_BTCUSD_20230103
["timestamp","ask_amount","ask_price","bid_price","bid_amount"]
[1672784285776,0.67746039,16666.0,16665.0,2.21340066]
[1672784286275,0.67746039,16666.0,16665.0,2.00580966]
[1672784287024,0.67746039,16666.0,16665.0,2.21340066]
[1672784287973,0.67746039,16666.0,16665.0,2.00580966]
[1672784288434,0.67746039,16666.0,16665.0,2.21340066]
[1672784290400,0.67746039,16666.0,16665.0,1.91341066]
[1672784290624,0.67746039,16666.0,16665.0,2.21340066]
[1672784290886,0.67746039,16666.0,16665.0,2.60586966]
[1672784291347,1.12649282,16666.0,16665.0,2.81346066]
[1672784292104,0.85658761,16666.0,16665.0,2.81346066]
[1672784292337,1.12649407,16666.0,16665.0,2.81346066]
[1672784292546,0.85658761,16666.0,16665.0,2.81346066]
[1672784292768,1.12649442,16666.0,16665.0,2.81346066]
[1672784293010,0.85658761,16666.0,16665.0,2.81346066]
[1672784293249,1.12649588,16666.0,16665.0,2.60586966]
[1672784293508,1.12649588,16666.0,16665.0,2.21340066]
[1672784293716,1.12649588,16666.0,16665.0,2.40580966]
[1672784294155,1.12649588,16666.0,16665.0,3.00586966]
[1672784294399,1.12649588,16666.0,16665.0,2.61340066]
[1672784294619,0.85658761,16666.0,16665.0,2.40580966]
[1672784294870,0.85658761,16666.0,16665.0,3.00586966]
[1672784295125,1.12649478,16666.0,16665.0,3.21346066]
[1672784295378,0.85658761,16666.0,16665.0,3.00586966]
[1672784296102,0.85658761,16666.0,16665.0,2.40580966]
[1672784296347,1.12650952,16666.0,16665.0,3.01436966]
[1672784296830,1.1265106,16666.0,16665.0,3.01436966]
[1672784297077,0.67747817,16666.0,16665.0,3.01436966]
[1672784297287,1.1265106,16666.0,16665.0,3.22196066]
[1672784297567,1.1265106,16666.0,16665.0,3.01436966]
[1672784297811,1.1265106,16666.0,16665.0,2.99222799]
[1672784298064,1.1265106,16666.0,16665.0,2.98936966]
[1672784298286,0.85658761,16666.0,16665.0,3.19696066]
[1672784298500,0.85658761,16666.0,16665.0,2.98936966]
[1672784298670,1.12651691,16666.0,16665.0,3.19696066]
[1672784298971,1.12651691,16666.0,16665.0,2.98936966]
[1672784299048,1.12651691,16666.0,16665.0,2.68937966]
[1672784299543,0.67748448,16666.0,16665.0,2.68937966]
[1672784299731,0.67748448,16666.0,16665.0,2.98935966]
[1672784300398,0.67748448,16666.0,16665.0,3.19695066]
[1672784300600,0.67748448,16666.0,16665.0,2.98892736]
[1672784301349,0.67748448,16666.0,16665.0,3.58898736]
[1672784301559,0.67748448,16666.0,16665.0,3.49659836]
[1672784301813,0.67748448,16666.0,16665.0,3.79657836]
[1672784302691,0.67748448,16666.0,16665.0,3.19651836]
[1672784303386,0.67748448,16666.0,16665.0,3.17151836]
[1672784305094,0.67748448,16666.0,16665.0,2.87153836]
[1672784305272,0.67748448,16666.0,16665.0,3.17151836]
[1672784305867,0.67748448,16666.0,16665.0,3.47151836]
[1672784306118,0.67759473,16666.0,16665.0,3.47145701]
[1672784306351,0.67748448,16666.0,16665.0,3.47192905]
[1672784306610,0.67748448,16666.0,16665.0,3.26433805]
[1672784306851,0.67748448,16666.0,16665.0,3.47192905]
[1672784307331,0.67748448,16666.0,16665.0,3.26433805]
[1672784307752,0.67748448,16666.0,16665.0,3.47192905]
[1672784307876,0.67748448,16666.0,16665.0,3.47145701]
[1672784308578,0.67748448,16666.0,16665.0,3.47192905]
[1672784309020,0.67748448,16666.0,16665.0,3.17145701]
[1672784309469,0.67748448,16666.0,16665.0,2.96386601]
[1672784309729,0.67748448,16666.0,16665.0,2.96439632]
[1672784309988,0.67791787,16666.0,16665.0,2.96439632]
[1672784312421,0.67791787,16666.0,16665.0,3.17198732]
[1672784312865,0.67791787,16666.0,16665.0,2.96439632]
[1672784313791,0.67791787,16666.0,16665.0,2.96386601]
[1672784314278,1.1269503,16666.0,16665.0,2.96386601]
[1672784314742,1.1269503,16666.0,16665.0,1.96386601]
[1672784314998,1.1269503,16666.0,16665.0,1.95297855]
[1672784317137,1.1269503,16666.0,16665.0,1.95350886]
[1672784318836,1.12706055,16666.0,16665.0,1.95297855]
[1672784319049,1.1269503,16666.0,16665.0,2.55303855]
[1672784319295,1.1269503,16666.0,16665.0,1.95297855]
[1672784319515,1.1269503,16666.0,16665.0,1.95350886]
[1672784319726,1.12695586,16666.0,16665.0,1.95350886]
[1672784320018,0.857021,16666.0,16665.0,1.95350886]
[1672784320264,0.857021,16666.0,16665.0,2.16109986]
[1672784320510,0.857021,16666.0,16665.0,1.65352886]
[1672784320755,0.857021,16666.0,16665.0,1.95351886]
[1672784321000,0.857021,16666.0,16665.0,1.65352886]
[1672784321295,0.85713125,16666.0,16665.0,1.95298855]
[1672784321719,0.857021,16666.0,16665.0,1.95298855]
[1672784324526,0.857021,16666.0,16665.0,1.95351886]
[1672784324741,0.857021,16666.0,16665.0,1.95298855]
[1672784325143,0.857021,16666.0,16665.0,2.23188876]
[1672784325386,0.857021,16666.0,16665.0,1.95298855]
[1672784325609,0.85713125,16666.0,16665.0,1.95298855]
[1672784325855,0.857021,16666.0,16665.0,1.95351886]
[1672784326585,0.857021,16666.0,16665.0,1.95298855]
[1672784326799,0.857021,16666.0,16665.0,1.95351886]
[1672784327177,0.85713125,16666.0,16665.0,1.95298855]
[1672784327428,0.857021,16666.0,16665.0,1.95298855]
[1672784327732,0.857021,16666.0,16665.0,1.95297855]
[1672784327982,0.857021,16666.0,16665.0,1.95350886]
[1672784329372,0.857021,16666.0,16665.0,1.95351886]
[1672784329814,0.857021,16666.0,16665.0,1.35292855]
[1672784330063,0.857021,16666.0,16665.0,1.56051955]
[1672784330293,0.857021,16666.0,16665.0,0.98114489]
[1672784330504,0.857021,16666.0,16665.0,0.98061458]
[1672784331404,0.857021,16666.0,16665.0,1.58067458]
[1672784331664,0.857021,16666.0,16665.0,1.85025902]
[1672784331887,0.857021,16666.0,16665.0,2.65791002]
[1672784332116,0.67789061,16666.0,16665.0,2.95791002]
[1672784332326,0.67789061,16666.0,16665.0,2.55791002]
[1672784332570,0.67789061,16666.0,16665.0,2.25791002]
[1672784333514,0.67789061,16666.0,16665.0,2.05031902]
[1672784333747,0.67789061,16666.0,16665.0,2.25791002]
[1672784335614,0.67789061,16666.0,16665.0,2.05031902]
[1672784336091,0.67789061,16666.0,16665.0,2.25791002]
[1672784336344,0.67789061,16666.0,16665.0,2.05031902]
[1672784336561,0.67789061,16666.0,16665.0,1.75032902]
[1672784337060,0.67789061,16666.0,16665.0,2.04977871]
[1672784339432,0.67800086,16666.0,16665.0,2.04977871]
[1672784339674,0.67789061,16666.0,16665.0,2.04977871]
[1672784340669,0.67789061,16666.0,16665.0,2.25736971]
[1672784340910,0.67789061,16666.0,16665.0,2.25790002]
[1672784341686,0.67789061,16666.0,16665.0,1.95738971]
[1672784342103,0.67789061,16666.0,16665.0,1.95792002]
[1672784342382,0.67789061,16666.0,16665.0,2.25790002]
[1672784343169,0.67789061,16666.0,16665.0,1.95792002]
[1672784343422,0.67789061,16666.0,16665.0,2.25790002]
[1672784346814,0.67789061,16666.0,16665.0,2.25930447]
[1672784347572,0.67800086,16666.0,16665.0,2.25930447]
[1672784347820,0.67789061,16666.0,16665.0,2.25930447]
[1672784348895,0.67800086,16666.0,16665.0,2.25930447]
[1672784349106,0.67800086,16666.0,16665.0,2.25931447]
[1672784349379,0.67789061,16666.0,16665.0,1.69027034]
[1672784349657,0.67789061,16666.0,16665.0,1.99026034]
[1672784350366,0.67789061,16666.0,16665.0,1.99079065]
[1672784352014,0.67789061,16666.0,16665.0,1.99026034]
[1672784352753,1.12692304,16666.0,16665.0,1.99026034]
[1672784353019,0.67789061,16666.0,16665.0,1.99026034]
[1672784353887,0.67789061,16666.0,16665.0,1.99079065]
[1672784354133,0.67789061,16666.0,16665.0,1.99078065]
[1672784355792,0.67789061,16666.0,16665.0,1.99079065]
[1672784357719,0.67789061,16666.0,16665.0,1.69080065]
[1672784357979,0.857021,16666.0,16665.0,1.39073065]
[1672784358525,0.857021,16666.0,16665.0,1.39020034]
[1672784359289,0.857021,16666.0,16665.0,1.78266934]
[1672784359570,0.857021,16666.0,16665.0,1.99026034]
[1672784360098,0.857021,16666.0,16665.0,1.69027034]
[1672784360343,0.857021,16666.0,16665.0,1.39020034]
[1672784361594,1.1269403,16666.0,16665.0,1.39020034]
[1672784362073,0.857021,16666.0,16665.0,1.99079065]
[1672784362303,1.12694103,16666.0,16665.0,1.99079065]
[1672784362553,1.12694103,16666.0,16665.0,1.39073065]
[1672784363050,0.857021,16666.0,16665.0,0.79067065]
[1672784363301,0.857021,16666.0,16665.0,1.99079065]
[1672784363546,0.67793618,16666.0,16665.0,1.99079065]
[1672784363793,0.67793618,16666.0,16665.0,2.29079065]
[1672784364577,0.85790612,16666.0,16665.0,2.57048965]
[1672784364815,0.85790612,16666.0,16665.0,2.27049965]
[1672784365038,0.67793618,16666.0,16665.0,2.57047965]
[1672784365755,0.85790626,16666.0,16665.0,2.57047965]
[1672784367667,0.49879665,16666.0,16665.0,2.57047965]
[1672784368150,0.49879665,16666.0,16665.0,2.27049965]
[1672784368441,0.49879665,16666.0,16665.0,2.57047965]
[1672784374121,0.49783198,16666.0,16665.0,2.57047965]
[1672784374593,0.49783198,16666.0,16665.0,2.56994934]
[1672784375153,0.49859841,16666.0,16665.0,2.56994934]
[1672784375675,0.49870866,16666.0,16665.0,2.56994934]
[1672784375926,0.49859841,16666.0,16665.0,2.56994934]
[1672784376661,0.49859841,16666.0,16665.0,3.17000934]
[1672784377384,0.49859841,16666.0,16665.0,2.56994934]
[1672784378280,0.49859841,16666.0,16665.0,2.57047965]
[1672784378630,0.49870866,16666.0,16665.0,2.56994934]
[1672784378893,0.67784819,16666.0,16665.0,1.66988934]
[1672784379373,0.67773794,16666.0,16665.0,2.26994934]
[1672784379587,0.67773794,16666.0,16665.0,2.27047965]
[1672784380804,0.67773794,16666.0,16665.0,1.67041965]
[1672784381312,0.67773794,16666.0,16665.0,2.27047965]
[1672784381559,0.67773794,16666.0,16665.0,1.67041965]
[1672784382305,0.67773794,16666.0,16665.0,1.67042965]
[1672784382831,0.67773794,16666.0,16665.0,1.66989934]
[1672784383080,0.67773794,16666.0,16665.0,2.26995934]
[1672784384565,0.67784819,16666.0,16665.0,1.39020034]
[1672784384810,0.67784819,16666.0,16665.0,1.99026034]
[1672784385293,0.67773794,16666.0,16665.0,1.99026034]
[1672784385557,0.67773794,16666.0,16665.0,1.39020034]
[1672784385815,0.67773794,16666.0,16665.0,1.99026034]
[1672784386066,0.67773794,16666.0,16665.0,1.39020034]
[1672784386318,0.67773794,16666.0,16665.0,1.39073065]
[1672784386597,0.67784819,16666.0,16665.0,2.26562753]
[1672784386846,0.67773794,16666.0,16665.0,1.66556753]
[1672784387094,0.67773794,16666.0,16665.0,2.26562753]
[1672784387632,0.67773794,16666.0,16665.0,1.66609784]
[1672784387863,0.67773794,16666.0,16665.0,1.66556753]
[1672784388612,0.67773794,16666.0,16665.0,1.66609784]
[1672784388822,0.67773794,16666.0,16665.0,2.26615784]
[1672784389098,0.67773794,16666.0,16665.0,1.66609784]
[1672784389341,0.67773794,16666.0,16665.0,2.26615784]
[1672784391573,0.67784819,16666.0,16665.0,2.26562753]
[1672784391814,0.67773794,16666.0,16665.0,2.26562753]
[1672784392242,0.67773794,16666.0,16665.0,1.66556753]
[1672784392489,0.67773794,16666.0,16665.0,1.66555753]
[1672784393965,0.67773794,16666.0,16665.0,1.36557753]
[1672784394228,0.67773794,16666.0,16665.0,1.15798653]
[1672784394464,0.67773794,16666.0,16665.0,1.36557753]
[1672784394639,0.67773794,16666.0,16665.0,1.66556753]
[1672784395520,0.67773794,16666.0,16665.0,1.66609784]
[1672784395759,0.67784819,16666.0,16665.0,2.26615784]
[1672784395982,0.67784819,16666.0,16665.0,2.26562753]
[1672784396319,0.67773794,16666.0,16665.0,2.26562753]
[1672784396565,0.67773794,16666.0,16665.0,2.26615784]
[1672784396804,0.67773794,16666.0,16665.0,2.26562753]
[1672784397027,0.67773794,16666.0,16665.0,1.96563753]
[1672784397273,0.67773794,16666.0,16665.0,2.26562753]
[1672784397773,0.67773794,16666.0,16665.0,2.26615784]
[1672784398015,0.67773794,16666.0,16665.0,1.66609784]
[1672784398475,0.67773794,16666.0,16665.0,1.66556753]
[1672784398687,0.67773794,16666.0,16665.0,2.26615784]
[1672784398940,0.67773794,16666.0,16665.0,1.66556753]
[1672784399221,0.67784819,16666.0,16665.0,1.39020034]
[1672784399483,0.67773794,16666.0,16665.0,1.39020034]
[1672784400232,0.67773794,16666.0,16665.0,1.99026034]
[1672784400459,0.67773794,16666.0,16665.0,1.66356603]
[1672784401162,0.67773794,16666.0,16665.0,2.26362603]
[1672784401413,0.67773794,16666.0,16665.0,1.66303572]
[1672784402412,0.67773794,16666.0,16665.0,2.26309572]
[1672784402854,0.67773794,16666.0,16665.0,1.66303572]
[1672784403082,0.67784819,16666.0,16665.0,1.66303572]
[1672784403569,0.67784819,16666.0,16665.0,2.26309572]
[1672784403781,0.67773794,16666.0,16665.0,2.26309572]
[1672784404498,0.67773794,16666.0,16665.0,2.26362603]
[1672784404520,0.67784819,16666.0,16665.0,2.26309572]
[1672784404732,0.67773794,16666.0,16665.0,2.26309572]
[1672784405214,0.67773794,16666.0,16665.0,2.26362603]
[1672784406177,1.12677037,16666.0,16665.0,2.26362603]
[1672784406393,1.12677037,16666.0,16665.0,2.26309572]
[1672784406611,1.12677037,16666.0,16665.0,2.26362603]
[1672784407137,1.12677037,16666.0,16665.0,1.96363603]
[1672784407345,1.12677037,16666.0,16665.0,1.96310572]
[1672784407559,0.67773794,16666.0,16665.0,1.96310572]
[1672784407774,0.67773794,16666.0,16665.0,1.96363603]
[1672784409966,0.67773794,16666.0,16665.0,1.36357603]
[1672784410212,0.67773794,16666.0,16665.0,1.36304572]
[1672784410786,0.67773794,16666.0,16665.0,1.15598503]
[1672784410978,0.67773794,16666.0,16665.0,1.36357603]
[1672784411240,0.67773794,16666.0,16665.0,1.96363603]
[1672784411481,0.67773794,16666.0,16665.0,1.96310572]
[1672784411967,0.67773794,16666.0,16665.0,2.26308572]
[1672784413429,0.67773794,16666.0,16665.0,1.66302572]
[1672784413912,0.67773794,16666.0,16665.0,2.26308572]
[1672784414929,0.67784819,16666.0,16665.0,2.26308572]
[1672784415188,0.67784819,16666.0,16665.0,1.66302572]
[1672784415189,0.67773794,16666.0,16665.0,1.66302572]
[1672784415450,0.67773794,16666.0,16665.0,1.45543472]
[1672784415942,1.12683052,16666.0,16665.0,1.66302572]
[1672784416193,1.12683052,16666.0,16665.0,1.76357603]
[1672784416443,0.49867501,16666.0,16665.0,3.96625725]
[1672784416708,0.22866725,16666.0,16665.0,4.35355671]
[1672784416962,0.22866725,16666.0,16665.0,5.86900591]
[1672784416963,0.04868072,16666.0,16665.0,5.86900591]
[1672784417205,0.8091039,16668.0,16666.0,0.01624731]
[1672784417450,0.8091039,16668.0,16667.0,2.10050625]
[1672784417451,0.44999429,16668.0,16667.0,2.10050625]
[1672784417726,0.44999429,16668.0,16667.0,3.92222834]
[1672784417965,0.17998653,16668.0,16667.0,3.92937521]
[1672784418229,0.18069981,16668.0,16667.0,3.92937521]
[1672784418479,0.18269981,16668.0,16667.0,4.0533752]
[1672784418744,0.18179213,16668.0,16667.0,4.0533752]
[1672784419482,0.18179213,16668.0,16667.0,4.05337519]
[1672784420497,0.00271328,16668.0,16667.0,4.05337519]
[1672784420743,0.00271328,16668.0,16667.0,4.05337518]
[1672784421241,0.00271328,16668.0,16667.0,3.62011892]
[1672784421738,0.00071328,16668.0,16667.0,3.49611892]
[1672784422008,0.00271328,16668.0,16667.0,3.61911892]
[1672784422500,0.00271328,16668.0,16667.0,3.91905892]
[1672784422743,0.00271328,16668.0,16667.0,4.35231517]
[1672784423254,0.00271328,16668.0,16667.0,4.37029677]
[1672784423755,0.00271328,16668.0,16667.0,4.07035676]
[1672784423997,0.00271328,16668.0,16667.0,4.37029676]
[1672784425428,0.00271328,16668.0,16667.0,4.37029675]
[1672784426464,0.00271328,16668.0,16667.0,4.37029674]
[1672784428372,0.00271328,16668.0,16667.0,4.07035673]
[1672784429137,0.00271328,16668.0,16667.0,4.37029673]
[1672784429360,0.22875175,16669.0,16668.0,0.2064105]
[1672784429615,0.22875175,16669.0,16668.0,2.10821581]
[1672784429855,0.17949731,16669.0,16668.0,2.31575681]
[1672784430092,0.18039376,16669.0,16668.0,2.31575681]
[1672784430347,0.18039376,16669.0,16668.0,2.6156968]
[1672784430585,0.18239376,16669.0,16668.0,2.7416968]
[1672784431293,0.00289645,16669.0,16668.0,2.7416968]
[1672784431513,0.18239376,16669.0,16668.0,2.4417568]
[1672784431755,0.18239376,16669.0,16668.0,2.7416968]
[1672784432018,0.18239376,16669.0,16668.0,2.4417568]
[1672784432753,0.18239376,16669.0,16668.0,2.44175679]
[1672784433007,0.18239376,16669.0,16668.0,2.74169679]
[1672784434284,0.00289645,16669.0,16668.0,2.74169679]
[1672784435540,0.00289645,16669.0,16668.0,2.74169678]
[1672784436763,0.18239376,16669.0,16668.0,2.74169678]
[1672784437259,0.00289645,16669.0,16668.0,2.74169678]
[1672784437504,0.18239376,16669.0,16668.0,2.74169677]
[1672784437752,0.62911737,16670.0,16669.0,0.02452189]
[1672784438013,0.62911737,16670.0,16669.0,1.22815362]
[1672784438257,0.27000776,16670.0,16669.0,1.7667834]
[1672784438485,0.27000776,16670.0,16669.0,1.1668674]
[1672784438734,0.27000776,16670.0,16669.0,1.16686739]
[1672784439227,0.27100776,16670.0,16669.0,1.29686739]
[1672784440451,0.27100776,16670.0,16669.0,0.8639815]
[1672784441208,0.27100776,16670.0,16669.0,0.86449068]
[1672784442184,0.27187411,16670.0,16669.0,0.86449068]
[1672784442647,0.63098372,16670.0,16669.0,0.86449068]
[1672784442907,0.27187411,16670.0,16669.0,0.86449068]
[1672784443177,0.63098372,16670.0,16669.0,0.86449068]
[1672784443415,0.63098372,16670.0,16669.0,0.65696568]
[1672784444420,0.63098372,16670.0,16669.0,0.95690568]
[1672784444678,0.63098372,16670.0,16669.0,0.95690567]
[1672784446414,0.63109397,16670.0,16669.0,0.95639649]
[1672784446664,0.63098372,16670.0,16669.0,0.95639649]
[1672784448179,0.63098372,16670.0,16669.0,0.14954084]
[1672784448180,1.3679964,16670.0,16669.0,0.14954084]
[1672784448425,1.53605434,16670.0,16669.0,0.14954084]
[1672784448685,0.91967434,16670.0,16669.0,0.14954084]
[1672784448932,1.45894946,16670.0,16669.0,0.14954084]
[1672784449190,0.91967434,16670.0,16669.0,0.14954084]
[1672784449445,1.45794946,16670.0,16669.0,0.01954084]
[1672784449687,1.45794946,16670.0,16669.0,0.09554084]
[1672784449938,2.05882946,16670.0,16669.0,0.09554084]
[1672784450194,2.05871921,16670.0,16669.0,0.09554083]
[1672784450444,2.05882946,16670.0,16669.0,0.09554083]
[1672784451933,2.65870946,16670.0,16669.0,0.09554083]
[1672784452188,2.65770946,16670.0,16669.0,0.01954083]
[1672784452443,3.27508946,16670.0,16669.0,0.09554083]
[1672784452663,3.27408946,16670.0,16669.0,0.01954083]
[1672784453150,2.65870946,16670.0,16669.0,0.09554083]
[1672784453397,2.65770946,16670.0,16669.0,0.01954083]
[1672784453646,2.65870946,16670.0,16669.0,0.09554083]
[1672784455623,2.65859921,16670.0,16669.0,0.09562981]
[1672784455886,2.65859921,16670.0,16669.0,0.09554083]
[1672784456940,2.49266815,16670.0,16669.0,0.09554083]
[1672784457190,3.10904815,16670.0,16669.0,0.09554083]
[1672784457758,2.49266815,16670.0,16669.0,0.09554083]
[1672784457957,2.73570409,16670.0,16669.0,0.09554083]
[1672784458168,2.11932409,16670.0,16669.0,0.09554083]
[1672784458418,3.64747713,16670.0,16669.0,0.09554083]
[1672784458661,2.49261426,16670.0,16669.0,0.09554083]
[1672784458903,3.10899426,16670.0,16669.0,0.09554083]
[1672784459137,3.10910451,16670.0,16669.0,0.09542166]
[1672784461565,3.27416921,16670.0,16669.0,0.09542166]
[1672784462296,3.27405896,16670.0,16669.0,0.09542166]
[1672784462488,2.65767896,16670.0,16669.0,0.09542166]
[1672784462877,2.65778921,16670.0,16669.0,0.09542166]
[1672784463577,3.27416921,16670.0,16669.0,0.09542166]
[1672784470451,3.27405896,16670.0,16669.0,0.09542166]
[1672784470701,2.65767896,16670.0,16669.0,0.09542166]
[1672784473909,2.65778921,16670.0,16669.0,0.09542166]
[1672784474166,3.27416921,16670.0,16669.0,0.09542166]
[1672784475914,2.65778921,16670.0,16669.0,0.09542166]
[1672784478720,2.65767896,16670.0,16669.0,0.09542166]
[1672784482085,2.65778921,16670.0,16669.0,0.09542166]
[1672784482564,2.65778921,16670.0,16669.0,0.09535244]
[1672784483600,2.6576839,16670.0,16669.0,0.09535244]
[1672784483848,1.51944903,16670.0,16669.0,0.09535244]
[1672784484113,2.13582903,16670.0,16669.0,0.09535244]
[1672784486074,3.34132793,16670.0,16669.0,0.09535244]
[1672784486548,2.72494793,16670.0,16669.0,0.09535244]
[1672784486770,3.34132793,16670.0,16669.0,0.09535244]
[1672784487033,3.71525498,16670.0,16669.0,0.09535244]
[1672784487285,3.09892415,16670.0,16669.0,0.09535244]
[1672784487526,3.71530415,16670.0,16669.0,0.09535243]
[1672784487776,3.09892415,16670.0,16669.0,0.09535243]
[1672784488033,3.71530415,16670.0,16669.0,0.09535243]
[1672784488274,3.71530381,16670.0,16669.0,0.09535243]
[1672784488529,3.71607163,16670.0,16669.0,0.09535243]
[1672784488957,3.10968491,16670.0,16669.0,0.09535243]
[1672784489199,2.72567697,16670.0,16669.0,0.09535243]
[1672784489466,3.34205697,16670.0,16669.0,0.09535243]
[1672784489707,2.73570903,16670.0,16669.0,0.09535243]
[1672784490517,2.7256566,16670.0,16669.0,0.09535243]
[1672784490696,2.73570903,16670.0,16669.0,0.09535243]
[1672784491166,3.1096716,16670.0,16669.0,0.09535243]
[1672784492172,2.4932916,16670.0,16669.0,0.09535243]
[1672784492409,3.1096716,16670.0,16669.0,0.09535243]
[1672784492897,2.73470903,16670.0,16669.0,0.01935243]
[1672784493410,2.73570903,16670.0,16669.0,0.09535243]
[1672784494629,2.11932903,16670.0,16669.0,0.09535243]
[1672784494884,2.73570903,16670.0,16669.0,0.09535243]
[1672784495384,3.10955556,16670.0,16669.0,0.09535243]
[1672784498618,3.71569672,16670.0,16669.0,0.09535243]
[1672784498837,3.71558647,16670.0,16669.0,0.09544141]
[1672784499055,3.09920647,16670.0,16669.0,0.09535243]
[1672784499268,3.71558647,16670.0,16669.0,0.09535243]
[1672784500074,3.09920647,16670.0,16669.0,0.09535243]
[1672784500320,3.71558647,16670.0,16669.0,0.09535243]
[1672784500846,3.09920647,16670.0,16669.0,0.09535243]
[1672784501090,3.71558647,16670.0,16669.0,0.09535243]
[1672784501340,3.09920647,16670.0,16669.0,0.09535243]
[1672784501616,3.71558647,16670.0,16669.0,0.09535243]
[1672784502400,3.71569672,16670.0,16669.0,0.09535243]
[1672784504139,3.71569672,16670.0,16669.0,0.09523313]
[1672784504571,3.10955556,16670.0,16669.0,0.09523313]
[1672784505989,3.10955556,16670.0,16669.0,0.09523312]
[1672784506418,2.50967556,16670.0,16669.0,0.09523312]
[1672784507757,1.89329556,16670.0,16669.0,0.09523312]
[1672784508198,2.49940892,16670.0,16669.0,0.09523312]
[1672784508412,2.55844827,16670.0,16669.0,0.09523312]
[1672784508589,3.17482827,16670.0,16669.0,0.09523312]
[1672784509190,2.55844827,16670.0,16669.0,0.09523312]
[1672784510028,2.55768723,16670.0,16669.0,0.09523312]
[1672784510721,3.15756723,16670.0,16669.0,0.09523312]
[1672784511020,3.77455813,16670.0,16669.0,0.09523312]
[1672784511164,3.17467813,16670.0,16669.0,0.09523312]
[1672784511846,2.55829813,16670.0,16669.0,0.09523312]
[1672784512096,2.55768723,16670.0,16669.0,0.09523312]
[1672784513118,2.55829813,16670.0,16669.0,0.09523312]
[1672784514051,2.55768723,16670.0,16669.0,0.09523312]
[1672784515954,1.95218477,16670.0,16669.0,0.09523312]
[1672784516191,1.95218477,16670.0,16669.0,0.09523311]
[1672784517066,2.55768723,16670.0,16669.0,0.09523311]
[1672784517617,2.72468135,16670.0,16669.0,0.09523311]
[1672784517869,3.77394723,16670.0,16669.0,0.09523311]
[1672784518084,3.77455813,16670.0,16669.0,0.09523311]
[1672784519099,3.17456788,16670.0,16669.0,0.09532209]
[1672784519354,2.125302,16670.0,16669.0,0.09523311]
[1672784519613,2.55818788,16670.0,16669.0,0.09523311]
[1672784520532,2.125302,16670.0,16669.0,0.09523311]
[1672784520746,2.55818788,16670.0,16669.0,0.09523311]
[1672784521199,3.15806788,16670.0,16669.0,0.09523311]
[1672784521483,3.77444788,16670.0,16669.0,0.09523311]
[1672784521994,3.15806788,16670.0,16669.0,0.09523311]
[1672784522215,3.77444788,16670.0,16669.0,0.09523311]
[1672784522462,3.15806788,16670.0,16669.0,0.09523311]
[1672784522726,3.77455813,16670.0,16669.0,0.09523311]
[1672784523212,3.17467813,16670.0,16669.0,0.09523311]
[1672784524140,2.55829813,16670.0,16669.0,0.09523311]
[1672784524815,2.55818788,16670.0,16669.0,0.09532209]
[1672784525059,2.55829813,16670.0,16669.0,0.09523311]
[1672784525370,1.95207452,16670.0,16669.0,0.09523311]
[1672784526033,1.95146362,16670.0,16669.0,0.09523311]
[1672784526250,1.95157387,16670.0,16669.0,0.09514782]
[1672784528931,2.59809059,16670.0,16669.0,0.09514781]
[1672784529161,1.98171059,16670.0,16669.0,0.09514781]
[1672784530609,1.98160034,16670.0,16669.0,0.09514781]
[1672784531454,2.59798034,16670.0,16669.0,0.09514781]
[1672784531752,1.98160034,16670.0,16669.0,0.09514781]
[1672784532571,2.59798034,16670.0,16669.0,0.09514781]
[1672784532827,1.98160034,16670.0,16669.0,0.09514781]
[1672784533280,2.59798034,16670.0,16669.0,0.09514781]
[1672784533535,1.98160034,16670.0,16669.0,0.09514781]
[1672784534038,1.98220747,16670.0,16669.0,0.09514781]
[1672784534301,1.98231772,16670.0,16669.0,0.09514781]
[1672784534515,1.98220747,16670.0,16669.0,0.09523679]
[1672784535699,2.52117617,16670.0,16669.0,0.09514781]
[1672784536612,1.48841029,16670.0,16669.0,0.09514781]
[1672784537117,0.88792316,16670.0,16669.0,0.09514781]
[1672784538327,1.48841029,16670.0,16669.0,0.09514781]
[1672784538565,0.88853029,16670.0,16669.0,0.09514781]
[1672784538821,0.03174385,16670.0,16669.0,0.09514781]
[1672784539069,0.03113672,16670.0,16669.0,0.09514781]
[1672784539292,1.16998542,16670.0,16669.0,0.09523678]
[1672784539509,0.63101672,16670.0,16669.0,0.09523678]
[1672784540695,0.03113672,16670.0,16669.0,0.1029809]
[1672784541197,0.03074385,16670.0,16669.0,0.0269809]
[1672784541456,0.48172367,16670.0,16669.0,0.1469809]
[1672784541669,0.48172367,16670.0,16669.0,0.6469809]
[1672784542106,0.48111654,16670.0,16669.0,0.6469809]
[1672784542856,0.48111654,16670.0,16669.0,0.64698089]
[1672784544105,0.48176415,16670.0,16669.0,0.64698089]
[1672784544622,0.48176415,16670.0,16669.0,0.64698088]
[1672784546350,0.48176415,16670.0,16669.0,0.94693088]
[1672784548344,0.48176415,16670.0,16669.0,0.94693087]
[1672784549090,0.48176415,16670.0,16669.0,0.9468141]
[1672784549629,0.48176415,16670.0,16669.0,0.94681409]
[1672784550119,0.84091155,16670.0,16669.0,0.94681409]
[1672784550363,0.48176415,16670.0,16669.0,0.94681409]
[1672784550603,0.84092978,16670.0,16669.0,0.94681409]
[1672784551765,0.84092978,16670.0,16669.0,0.94681408]
[1672784552308,0.84028217,16670.0,16669.0,0.94681408]
[1672784553526,0.84028217,16670.0,16669.0,0.9467251]
[1672784554473,0.84028217,16670.0,16669.0,0.94672509]
[1672784554937,0.84028217,16670.0,16669.0,1.15425009]
[1672784555762,0.84028217,16670.0,16669.0,0.94672508]
[1672784556008,0.84028217,16670.0,16669.0,1.15425008]
[1672784556225,0.84103933,16670.0,16669.0,0.94672508]
[1672784556653,0.84103933,16670.0,16669.0,0.94672507]
[1672784557329,0.84028217,16670.0,16669.0,0.94681405]
[1672784557584,1.10963778,16670.0,16669.0,0.94681405]
[1672784557848,0.84028217,16670.0,16669.0,0.94681405]
[1672784558096,1.10963404,16670.0,16669.0,0.94681405]
[1672784558356,0.84028217,16670.0,16669.0,0.94681405]
[1672784558598,0.84028217,16670.0,16669.0,0.94681404]
[1672784560243,0.84019028,16670.0,16669.0,0.94681404]
[1672784561170,1.44082744,16670.0,16669.0,0.44672506]
[1672784561413,2.04070744,16670.0,16669.0,0.44672505]
[1672784561680,1.68154181,16670.0,16669.0,0.44672505]
[1672784561935,1.08166181,16670.0,16669.0,0.44672505]
[1672784562159,0.48178181,16670.0,16669.0,0.44672505]
[1672784563156,0.84100508,16670.0,16669.0,0.44672505]
[1672784563372,0.48178181,16670.0,16669.0,0.44672505]
[1672784563877,1.08166181,16670.0,16669.0,0.44672505]
[1672784564121,0.48178181,16670.0,16669.0,1.3718668]
[1672784564371,0.66153406,16670.0,16669.0,3.05895435]
[1672784564609,0.66153406,16670.0,16669.0,3.05895433]
[1672784564849,0.66153406,16670.0,16669.0,2.7872732]
[1672784565589,0.66153406,16670.0,16669.0,2.78727319]
[1672784566331,0.84117521,16670.0,16669.0,3.18727319]
[1672784566539,0.48189974,16670.0,16669.0,3.18727318]
[1672784567338,0.48114258,16670.0,16669.0,3.18727318]
[1672784567589,0.48114258,16670.0,16669.0,2.58735718]
[1672784567841,0.84041805,16670.0,16669.0,2.58735718]
[1672784568105,0.6607769,16670.0,16669.0,2.58735717]
[1672784568353,0.84040359,16670.0,16669.0,3.18727317]